{"text_format":"1","workbook":"xlsx","n_sheets":2,"sheets":["Temlate Essai","Bibli"],"not_rendered":{"charts":0,"images":78,"macros":1,"external_links":0,"defined_names":2,"comments":0,"pivot_tables":0},"unopened":[],"bounds":{"document_bytes":16777216,"sheet_cells":100000,"rows_first":2000,"rows_last":500,"rows_between":2000,"halvings":0,"cell_chars":16384,"cell_head_chars":4096},"cells_cut":0,"cells_raw":0,"read":"whole","date_system":"1900"}

{"sheet":"Temlate Essai","index":0,"n_rows":72,"n_cols":19,"rows_kept":72,"cut":false,"hidden":false,"merged":[[0,4,0,8],[22,4,22,8]]}
[]
[null,null,null,null,{"$f":"LEFT(S2,FIND(\"µ\",SUBSTITUTE(S2,\"-\",\"µ\",2),1)-1)","v":"Brest-Saint"},null,"-",null,{"$f":"RIGHT(S2,LEN(S2)-FIND(\"µ\",SUBSTITUTE(S2,\"-\",\"µ\",2),1))","v":"Etienne"},null,null,null,null,null,null,null,null,null,"Brest-Saint-Etienne"]
[null,null,null,null,{"$f":"LEFT(S3,SEARCH(\"-\",S3,1)-1)","v":{"$error":"#VALUE!"}},null,"-",null,{"$f":"RIGHT(S3,LEN(S3)-FIND(\"µ\",SUBSTITUTE(S3,\"-\",\"µ\",2),1))","v":{"$error":"#VALUE!"}}]
[null,null,null,null,{"$f":"LEFT(S4,FIND(\"µ\",SUBSTITUTE(S4,\"-\",\"µ\",2),1)-1)","v":"Saint-Etienne"},null,"-",null,{"$f":"RIGHT(S4,LEN(S4)-FIND(\"µ\",SUBSTITUTE(S4,\"-\",\"µ\",2),1))","v":"PSG"},null,null,null,null,null,null,null,null,null,"Saint-Etienne-PSG"]
[null,null,null,null,{"$f":"LEFT(S5,SEARCH(\"-\",S5,1)-1)","v":{"$error":"#VALUE!"}},null,"-",null,{"$error":"#VALUE!"}]
[null,null,null,null,{"$f":"LEFT(S6,FIND(\"µ\",SUBSTITUTE(S6,\"-\",\"µ\",2),1)-1)","v":"Saint-Etienne"},null,"-",null,{"$f":"RIGHT(S6,LEN(S6)-FIND(\"µ\",SUBSTITUTE(S6,\"-\",\"µ\",2),1))","v":"Rennes"},null,null,null,null,null,null,null,null,null,"Saint-Etienne-Rennes"]
[null,null,null,null,{"$error":"#VALUE!"},null,"-",null,{"$error":"#VALUE!"}]
[null,null,null,null,{"$f":"LEFT(S6,FIND(\"µ\",SUBSTITUTE(S6,\"-\",\"µ\",2),1)-1)","v":"Saint-Etienne"},null,"-",null,{"$f":"RIGHT(S8,LEN(S8)-FIND(\"µ\",SUBSTITUTE(S8,\"-\",\"µ\",2),1))","v":"Nantes"},null,null,null,null,null,null,null,null,null,"Saint-Etienne-Nantes"]
[null,null,null,null,{"$f":"LEFT(S7,FIND(\"µ\",SUBSTITUTE(S7,\"-\",\"µ\",2),1)-1)","v":{"$error":"#VALUE!"}},null,"-",null,{"$f":"RIGHT(S9,LEN(S9)-FIND(\"µ\",SUBSTITUTE(S9,\"-\",\"µ\",2),1))","v":{"$error":"#VALUE!"}}]
[null,null,null,null,{"$f":"LEFT(S10,FIND(\"µ\",SUBSTITUTE(S10,\"-\",\"µ\",2),1)-1)","v":"Bordeaux-Saint"},null,"-",null,"Etienne",null,null,null,null,null,null,null,null,null,"Bordeaux-Saint-Etienne"]
[null,null,null,null,{"$error":"#VALUE!"},null,"-",null,{"$f":"MID(S11,SEARCH(\"-\",S11,1)+1,99)","v":{"$error":"#VALUE!"}}]
[null,null,null,null,{"$f":"LEFT(S12,SEARCH(\"-\",S12,1)-1)","v":{"$error":"#VALUE!"}},null,"-",null,{"$f":"MID(S12,SEARCH(\"-\",S12,1)+1,99)","v":{"$error":"#VALUE!"}},null,null,null,null,null,null,null,null,null,"x"]
[null,null,null,null,{"$error":"#VALUE!"},null,"-",null,{"$error":"#VALUE!"}]
[null,null,null,null,{"$f":"LEFT(S14,SEARCH(\"-\",S14,1)-1)","v":{"$error":"#VALUE!"}},null,"-",null,{"$f":"MID(S14,SEARCH(\"-\",S14,1)+1,99)","v":{"$error":"#VALUE!"}},null,null,null,null,null,null,null,null,null,"x"]
[null,null,null,null,{"$error":"#VALUE!"},null,"-",null,{"$error":"#VALUE!"}]
[null,null,null,null,{"$f":"LEFT(S16,SEARCH(\"-\",S16,1)-1)","v":{"$error":"#VALUE!"}},null,"-",null,{"$f":"MID(S16,SEARCH(\"-\",S16,1)+1,99)","v":{"$error":"#VALUE!"}},null,null,null,null,null,null,null,null,null,"x"]
[null,null,null,null,{"$error":"#VALUE!"},null,"-",null,{"$error":"#VALUE!"}]
[null,null,null,null,{"$f":"LEFT(S18,SEARCH(\"-\",S18,1)-1)","v":{"$error":"#VALUE!"}},null,"-",null,{"$f":"MID(S18,SEARCH(\"-\",S18,1)+1,99)","v":{"$error":"#VALUE!"}},null,null,null,null,null,null,null,null,null,"x"]
[null,null,null,null,null,null,"-"]
[null,null,null,null,{"$f":"LEFT(S20,FIND(\"µ\",SUBSTITUTE(S20,\"-\",\"µ\",2),1)-1)","v":{"$error":"#VALUE!"}},null,null,null,{"$f":"RIGHT(S20,LEN(S20)-FIND(\"µ\",SUBSTITUTE(S20,\"-\",\"µ\",2),1))","v":{"$error":"#VALUE!"}},null,null,null,null,null,null,null,null,null,"x"]
[]
[]
[null,null,null,null,"Score Exact",null,null,null,null,null,null,"Prono"]
[]
[]
[]
[]
[]
[]
[]
[]
[]
[]
[]
[]
[]
[]
[]
[]
[]
[]
[]
[]
[]
[]
[]
[]
[]
[]
[]
[]
[]
[]
[]
[]
[]
[]
[]
[]
[]
[]
[]
[]
[]
[]
[]
[]
[null,null,"Faire Alt F11 pour accéder à l'éditeur"]
[]
[]
[]
[null,null,"Double cliquer sur le nom du club pour afficher l'image"]

{"sheet":"Bibli","index":1,"n_rows":82,"n_cols":5,"rows_kept":82,"cut":false,"hidden":true,"merged":[]}
[]
[null,null,null,"Arsenal","Image 10"]
[null,null,null,"Aston Villa","Image 4"]
[null,null,null,"Brighton","Image 1"]
[null,null,null,"Burnley","Image 17"]
[null,null,null,"Chelsea","Image 11"]
[null,null,null,"Crystal Palace","Image 7"]
[null,null,null,"Everton","Image 15"]
[null,null,null,"Fulham","Image 8"]
[null,null,null,"Leeds","Image 16"]
[null,null,null,"Leicester","Image 2"]
[null,null,null,"Liverpool","Image 20"]
[null,null,null,"Manchester City","Image 12"]
[null,null,null,"Manchester Utd","Image 3"]
[null,null,null,"Newcastle","Image 13"]
[null,null,null,"Sheffield Utd","Image 14"]
[null,null,null,"Southampton","Image 9"]
[null,null,null,"Tottenham","Image 23"]
[null,null,null,"West Brom","Image 21"]
[null,null,null,"West Ham","Image 18"]
[null,null,null,"Wolves","Image 22"]
[]
[null,null,null,"Bordeaux","Image 24"]
[null,null,null,"Reims","Image 25"]
[null,null,null,"Lens","Image 27"]
[null,null,null,"Brest","Image 28"]
[null,null,null,"Nice","Image 29"]
[null,null,null,"Lorient","Image 30"]
[null,null,null,"Nîmes","Image 31"]
[null,null,null,"Dijon","Image 32"]
[null,null,null,"Rennes","Image 33"]
[null,null,null,"Metz","Image 34"]
[null,null,null,"Angers","Image 35"]
[null,null,null,"Marseille","Image 36"]
[null,null,null,"Lyon","Image 37"]
[null,null,null,"Nantes","Image 38"]
[null,null,null,"Monaco","Image 39"]
[null,null,null,"Saint Etienne","Image 40"]
[null,null,null,"Montpellier","Image 41"]
[null,null,null,"Lille","Image 42"]
[null,null,null,"PSG","Image 43"]
[null,null,null,"Strasbourg","Image 44"]
[]
[null,null,null,"Arminia Bielefeld","Image 45"]
[null,null,null,"B. Monchengladbach","Image 5"]
[null,null,null,"Eintracht Francfort","Image 46"]
[null,null,null,"Bayer Leverkusen","Image 47"]
[null,null,null,"FC Cologne","Image 50"]
[null,null,null,"Augsburg","Image 48"]
[null,null,null,"Hoffenheim","Image 51"]
[null,null,null,"Fribourg","Image 52"]
[null,null,null,"Werder Brême","Image 53"]
[null,null,null,"Union Berlin","Image 54"]
[null,null,null,"Hertha Berlin","Image 55"]
[null,null,null,"Schalke 04","Image 56"]
[null,null,null,"Stuttgart","Image 57"]
[null,null,null,"RB Leipzig","Image 58"]
[null,null,null,"Dortmund","Image 59"]
[null,null,null,"Wolfsburg","Image 60"]
[null,null,null,"Bayern Munich","Image 61"]
[null,null,null,"Mayence","Image 62"]
[]
[null,null,null,"FC Séville","Image 63"]
[null,null,null,"Villarreal","Image 64"]
[null,null,null,"Barcelone","Image 65"]
[null,null,null,"Eibar","Image 66"]
[null,null,null,"Cadix CF","Image 67"]
[null,null,null,"Valladolid","Image 68"]
[null,null,null,"Levante","Image 69"]
[null,null,null,"Betis","Image 70"]
[null,null,null,"Grenade","Image 72"]
[null,null,null,"Valence","Image 73"]
[null,null,null,"Atl. Madrid","Image 74"]
[null,null,null,"Getafe","Image 75"]
[null,null,null,"Celta Vigo","Image 76"]
[null,null,null,"Huesca","Image 77"]
[null,null,null,"Elche","Image 78"]
[null,null,null,"Real Madrid","Image 79"]
[null,null,null,"Ath. Bilbao","Image 80"]
[null,null,null,"Real Sociedad","Image 81"]
[null,null,null,"Osasuna","Image 82"]
[null,null,null,"Alaves","Image 83"]